[Event "Early-Titled-Tuesday-Blitz-May-07-2024"]
[Site "Chess.com"]
[Date "2024.05.07"]
[Round "2"]
[White "ClauSanLuis"]
[Black "rhungaski"]
[Result "1-0"]
[WhiteElo "2375"]
[BlackElo "2527"]
[TimeControl "180+1"]
[EndTime "8:19:23 PDT"]
[Termination "ClauSanLuis won by resignation"]

1. d4 {[%clk 0:02:57.5]} 1... Nf6 {[%clk 0:02:56.4]} 2. Bg5 {[%clk 0:02:57]}
2... g6 {[%clk 0:02:53.5]} 3. Bxf6 {[%clk 0:02:56.3]} 3... exf6 {[%clk
0:02:54.4]} 4. e3 {[%clk 0:02:52.4]} 4... Bg7 {[%clk 0:02:54.4]} 5. c4 {[%clk
0:02:48.8]} 5... f5 {[%clk 0:02:54.1]} 6. Nc3 {[%clk 0:02:48.2]} 6... O-O {[%clk
0:02:46.4]} 7. Nh3 {[%clk 0:02:38.5]} 7... d6 {[%clk 0:02:32.5]} 8. Be2 {[%clk
0:02:35.8]} 8... c5 {[%clk 0:02:32.5]} 9. dxc5 {[%clk 0:01:48.7]} 9... dxc5
{[%clk 0:02:33.4]} 10. Qxd8 {[%clk 0:01:39.2]} 10... Rxd8 {[%clk 0:02:34.3]} 11.
Nd5 {[%clk 0:01:39.6]} 11... Rd7 {[%clk 0:02:32.1]} 12. O-O-O {[%clk 0:01:37.4]}
12... Nc6 {[%clk 0:02:23.1]} 13. Nhf4 {[%clk 0:01:34.6]} 13... Kf8 {[%clk
0:02:17.7]} 14. h4 {[%clk 0:01:32.9]} 14... h5 {[%clk 0:02:13.8]} 15. Rd2 {[%clk
0:01:28.2]} 15... b6 {[%clk 0:01:42.5]} 16. Rhd1 {[%clk 0:01:22.6]} 16... Bb7
{[%clk 0:01:34.1]} 17. a3 {[%clk 0:01:14.1]} 17... Ne5 {[%clk 0:01:31.4]} 18.
Kc2 {[%clk 0:01:00.2]} 18... Rad8 {[%clk 0:01:30.3]} 19. b4 {[%clk 0:00:55.2]}
19... cxb4 {[%clk 0:01:07.7]} 20. axb4 {[%clk 0:00:53.5]} 20... Rc8 {[%clk
0:01:02.2]} 21. Kb3 {[%clk 0:00:52.5]} 21... Bc6 {[%clk 0:00:41]} 22. b5 {[%clk
0:00:47.7]} 22... Bb7 {[%clk 0:00:34.7]} 23. Ra2 {[%clk 0:00:47.5]} 23... Ba8
{[%clk 0:00:25.3]} 24. Rda1 {[%clk 0:00:45.7]} 24... Ng4 {[%clk 0:00:18.9]} 25.
Rxa7 {[%clk 0:00:44.8]} 25... Rxa7 {[%clk 0:00:18.6]} 26. Rxa7 {[%clk
0:00:44.4]} 26... Nxf2 {[%clk 0:00:18.5]} 27. Nxb6 {[%clk 0:00:44.5]} 27... Rd8
{[%clk 0:00:17.1]} 28. Rxa8 {[%clk 0:00:44.7]} 28... Rxa8 {[%clk 0:00:14.5]} 29.
Nxa8 {[%clk 0:00:45.6]} 29... Ne4 {[%clk 0:00:15.2]} 30. Nd5 {[%clk 0:00:44.1]}
1-0

[Event "Early-Titled-Tuesday-Blitz-May-07-2024"]
[Site "Chess.com"]
[Date "2024.05.07"]
[Round "2"]
[White "Navyblue1"]
[Black "ATM622"]
[Result "0-1"]
[WhiteElo "2250"]
[BlackElo "2491"]
[TimeControl "180+1"]
[EndTime "8:19:23 PDT"]
[Termination "ATM622 won by resignation"]

1. d4 {[%clk 0:03:00.9]} 1... Nf6 {[%clk 0:02:59.8]} 2. c4 {[%clk 0:02:59.4]}
2... e6 {[%clk 0:02:57]} 3. Nf3 {[%clk 0:02:57.6]} 3... d5 {[%clk 0:02:56]} 4.
Nc3 {[%clk 0:02:56.6]} 4... Be7 {[%clk 0:02:53.2]} 5. Bg5 {[%clk 0:02:54.3]}
5... O-O {[%clk 0:02:52.5]} 6. e3 {[%clk 0:02:54]} 6... c6 {[%clk 0:02:49.2]} 7.
Qc2 {[%clk 0:02:48.1]} 7... dxc4 {[%clk 0:02:39.4]} 8. Bxc4 {[%clk 0:02:46.6]}
8... Nbd7 {[%clk 0:02:35.7]} 9. O-O {[%clk 0:02:44.8]} 9... Nd5 {[%clk
0:02:29.3]} 10. Bxe7 {[%clk 0:02:42.1]} 10... Qxe7 {[%clk 0:02:25.9]} 11. Nxd5
{[%clk 0:02:32.7]} 11... exd5 {[%clk 0:02:22.8]} 12. Bd3 {[%clk 0:02:32.2]}
12... Nf6 {[%clk 0:02:22.5]} 13. Ne5 {[%clk 0:02:21.1]} 13... h6 {[%clk
0:02:11.6]} 14. Rab1 {[%clk 0:02:13.4]} 14... a5 {[%clk 0:02:10.2]} 15. a3
{[%clk 0:01:57.1]} 15... a4 {[%clk 0:02:09.7]} 16. Rfc1 {[%clk 0:01:51.8]} 16...
Be6 {[%clk 0:01:49.6]} 17. Qc5 {[%clk 0:01:38.7]} 17... Qc7 {[%clk 0:01:42.7]}
18. b4 {[%clk 0:01:31.8]} 18... axb3 {[%clk 0:01:40.2]} 19. Rxb3 {[%clk
0:01:30.5]} 19... Ra5 {[%clk 0:01:34]} 20. Qb4 {[%clk 0:01:21.3]} 20... Rfa8
{[%clk 0:01:33.2]} 21. Qxb7 {[%clk 0:00:38.5]} 21... Qxb7 {[%clk 0:01:32.5]} 22.
Rxb7 {[%clk 0:00:39.4]} 22... Rxa3 {[%clk 0:01:32.9]} 23. Bf1 {[%clk 0:00:35.6]}
23... Rc8 {[%clk 0:01:25.1]} 24. Rxc6 {[%clk 0:00:26.7]} 24... Rxc6 {[%clk
0:01:25]} 25. Nxc6 {[%clk 0:00:27.5]} 25... Ne4 {[%clk 0:01:18.4]} 26. f3 {[%clk
0:00:20.7]} 26... Nd2 {[%clk 0:01:17.7]} 27. Be2 {[%clk 0:00:19.8]} 27... g5
{[%clk 0:01:04.7]} 28. Kf2 {[%clk 0:00:18.8]} 28... g4 {[%clk 0:00:58.9]} 29.
Ne5 {[%clk 0:00:18.1]} 29... h5 {[%clk 0:00:53.7]} 30. fxg4 {[%clk 0:00:17.4]}
30... Ne4+ {[%clk 0:00:52.4]} 31. Ke1 {[%clk 0:00:15.5]} 31... Ra1+ {[%clk
0:00:42.7]} 32. Bd1 {[%clk 0:00:15.5]} 32... Nc3 {[%clk 0:00:38.9]} 33. Rb8+
{[%clk 0:00:15.3]} 33... Kg7 {[%clk 0:00:38.6]} 34. Nd3 {[%clk 0:00:09.8]} 34...
Rxd1+ {[%clk 0:00:37.2]} 0-1

[Event "Early-Titled-Tuesday-Blitz-May-07-2024"]
[Site "Chess.com"]
[Date "2024.05.07"]
[Round "2"]
[White "Nadtkins"]
[Black "chesslh93"]
[Result "0-1"]
[WhiteElo "2529"]
[BlackElo "2367"]
[TimeControl "180+1"]
[EndTime "8:19:25 PDT"]
[Termination "chesslh93 won by resignation"]

1. Nf3 {[%clk 0:03:00.9]} 1... d5 {[%clk 0:02:59.9]} 2. g3 {[%clk 0:03:01.2]}
2... Bg4 {[%clk 0:02:59.3]} 3. Bg2 {[%clk 0:03:00.3]} 3... Nd7 {[%clk
0:02:58.1]} 4. d4 {[%clk 0:03:00.8]} 4... c6 {[%clk 0:02:58.1]} 5. h3 {[%clk
0:03:01.2]} 5... Bxf3 {[%clk 0:02:57.1]} 6. Bxf3 {[%clk 0:03:00.7]} 6... Ngf6
{[%clk 0:02:57.1]} 7. O-O {[%clk 0:02:57.9]} 7... e6 {[%clk 0:02:56.3]} 8. Nd2
{[%clk 0:02:57.5]} 8... Be7 {[%clk 0:02:53.4]} 9. c3 {[%clk 0:02:56.5]} 9... O-O
{[%clk 0:02:53.1]} 10. e4 {[%clk 0:02:57.1]} 10... dxe4 {[%clk 0:02:51.5]} 11.
Nxe4 {[%clk 0:02:58]} 11... Nxe4 {[%clk 0:02:51.8]} 12. Bxe4 {[%clk 0:02:58.5]}
12... Nf6 {[%clk 0:02:51.9]} 13. Bc2 {[%clk 0:02:53.2]} 13... Qb6 {[%clk
0:02:45.8]} 14. b3 {[%clk 0:02:33.9]} 14... Rfd8 {[%clk 0:02:30.4]} 15. Qf3
{[%clk 0:02:27.7]} 15... Qa5 {[%clk 0:02:23]} 16. b4 {[%clk 0:01:56.7]} 16...
Qd5 {[%clk 0:02:22.4]} 17. Qe3 {[%clk 0:01:50.4]} 17... a5 {[%clk 0:02:16.5]}
18. Bb3 {[%clk 0:01:28]} 18... Qe4 {[%clk 0:02:13.1]} 19. bxa5 {[%clk
0:01:23.6]} 19... Rxa5 {[%clk 0:02:05.6]} 20. Bd2 {[%clk 0:01:17.8]} 20... Qxe3
{[%clk 0:02:04]} 21. fxe3 {[%clk 0:01:14.5]} 21... Ne4 {[%clk 0:01:59.5]} 22.
Be1 {[%clk 0:01:14.6]} 22... Raa8 {[%clk 0:01:54.8]} 23. Kg2 {[%clk 0:01:10]}
23... Nf6 {[%clk 0:01:36.3]} 24. c4 {[%clk 0:01:04.9]} 24... b5 {[%clk
0:01:32.1]} 25. Kf3 {[%clk 0:01:00]} 25... bxc4 {[%clk 0:01:25.2]} 26. Bxc4
{[%clk 0:00:59.8]} 26... c5 {[%clk 0:01:18.8]} 27. Bc3 {[%clk 0:00:44.5]} 27...
Nd5 {[%clk 0:01:18.8]} 28. Bxd5 {[%clk 0:00:44.1]} 28... Rxd5 {[%clk 0:01:18.6]}
29. Rfd1 {[%clk 0:00:30.2]} 29... cxd4 {[%clk 0:01:02]} 30. Bxd4 {[%clk
0:00:28.6]} 30... g6 {[%clk 0:00:45.1]} 31. Rd3 {[%clk 0:00:25.6]} 31... e5
{[%clk 0:00:31.7]} 32. Ke4 {[%clk 0:00:25.6]} 32... Rad8 {[%clk 0:00:31.9]} 33.
a4 {[%clk 0:00:21.4]} 33... f5+ {[%clk 0:00:30]} 0-1

[Event "Early-Titled-Tuesday-Blitz-May-07-2024"]
[Site "Chess.com"]
[Date "2024.05.07"]
[Round "2"]
[White "StankovicIvan"]
[Black "Larina_Maria"]
[Result "0-1"]
[WhiteElo "2522"]
[BlackElo "2357"]
[TimeControl "180+1"]
[EndTime "8:19:26 PDT"]
[Termination "Larina_Maria won by resignation"]

1. e4 {[%clk 0:03:00.9]} 1... c6 {[%clk 0:02:59.9]} 2. d4 {[%clk 0:03:00.4]}
2... d5 {[%clk 0:03:00]} 3. e5 {[%clk 0:03:00.6]} 3... Bf5 {[%clk 0:02:59.8]} 4.
h4 {[%clk 0:03:00.6]} 4... h5 {[%clk 0:02:59.5]} 5. Bg5 {[%clk 0:03:00.5]} 5...
Qb6 {[%clk 0:02:56.1]} 6. Bd3 {[%clk 0:03:00.1]} 6... Bxd3 {[%clk 0:02:55.6]} 7.
Qxd3 {[%clk 0:02:59.8]} 7... e6 {[%clk 0:02:54.2]} 8. Nd2 {[%clk 0:02:59.4]}
8... Nh6 {[%clk 0:02:38.1]} 9. Ngf3 {[%clk 0:02:58.4]} 9... Nf5 {[%clk
0:02:37.7]} 10. O-O {[%clk 0:02:56.1]} 10... Nd7 {[%clk 0:02:35.9]} 11. c4
{[%clk 0:02:55.9]} 11... Qa6 {[%clk 0:02:33.4]} 12. Qc2 {[%clk 0:02:44.9]} 12...
Bb4 {[%clk 0:02:15.1]} 13. c5 {[%clk 0:02:40.3]} 13... Bxd2 {[%clk 0:02:14.4]}
14. Qxd2 {[%clk 0:02:35.8]} 14... b6 {[%clk 0:02:11.4]} 15. b4 {[%clk
0:02:34.9]} 15... bxc5 {[%clk 0:02:10.2]} 16. bxc5 {[%clk 0:02:35.1]} 16... O-O
{[%clk 0:02:00.4]} 17. Rab1 {[%clk 0:02:31.2]} 17... Rfb8 {[%clk 0:01:59.5]} 18.
Bf6 {[%clk 0:01:37]} 18... Nxf6 {[%clk 0:01:11.8]} 19. exf6 {[%clk 0:01:36.1]}
19... gxf6 {[%clk 0:01:12.7]} 20. Qf4 {[%clk 0:01:35.7]} 20... Rb5 {[%clk
0:00:55.9]} 21. g4 {[%clk 0:01:33.3]} 21... hxg4 {[%clk 0:00:51.7]} 22. Qxg4+
{[%clk 0:01:33.4]} 22... Kf8 {[%clk 0:00:52.4]} 23. Qf4 {[%clk 0:01:24.2]} 23...
Rc8 {[%clk 0:00:41.6]} 24. h5 {[%clk 0:01:12]} 24... Ke7 {[%clk 0:00:41.3]} 25.
h6 {[%clk 0:01:10.7]} 25... Rg8+ {[%clk 0:00:36.5]} 26. Kh1 {[%clk 0:01:03.6]}
26... Rh8 {[%clk 0:00:36.5]} 27. Qc7+ {[%clk 0:00:50.1]} 27... Ke8 {[%clk
0:00:24.4]} 28. Qb8+ {[%clk 0:00:47.7]} 28... Rxb8 {[%clk 0:00:20.6]} 29. Rxb8+
{[%clk 0:00:48]} 29... Ke7 {[%clk 0:00:20.4]} 30. Rxh8 {[%clk 0:00:41.9]} 30...
Qxf1+ {[%clk 0:00:20.9]} 31. Ng1 {[%clk 0:00:42.2]} 31... Nh4 {[%clk 0:00:19.4]}
32. Rg8 {[%clk 0:00:41.5]} 32... Qxf2 {[%clk 0:00:08.7]} 33. h7 {[%clk
0:00:41.6]} 33... Ng6 {[%clk 0:00:08.8]} 34. Rxg6 {[%clk 0:00:38.7]} 34... Qh4+
{[%clk 0:00:08.8]} 35. Kg2 {[%clk 0:00:36.2]} 35... fxg6 {[%clk 0:00:09.7]} 0-1

[Event "Early-Titled-Tuesday-Blitz-May-07-2024"]
[Site "Chess.com"]
[Date "2024.05.07"]
[Round "2"]
[White "balack95"]
[Black "Sofia_Blokhin"]
[Result "1-0"]
[WhiteElo "2506"]
[BlackElo "2274"]
[TimeControl "180+1"]
[EndTime "8:19:26 PDT"]
[Termination "balack95 won on time"]

1. d4 {[%clk 0:03:00.9]} 1... f5 {[%clk 0:02:57.6]} 2. Nc3 {[%clk 0:03:00.6]}
2... Nf6 {[%clk 0:02:57.3]} 3. Bg5 {[%clk 0:03:00.7]} 3... e6 {[%clk 0:02:54.7]}
4. e4 {[%clk 0:03:00]} 4... fxe4 {[%clk 0:02:55]} 5. Nxe4 {[%clk 0:03:00.5]}
5... Be7 {[%clk 0:02:54.5]} 6. Bxf6 {[%clk 0:02:59.2]} 6... Bxf6 {[%clk
0:02:53.6]} 7. Nf3 {[%clk 0:02:58.5]} 7... O-O {[%clk 0:02:52.2]} 8. Bd3 {[%clk
0:02:59]} 8... g6 {[%clk 0:02:43.3]} 9. Qe2 {[%clk 0:02:56.6]} 9... Bg7 {[%clk
0:02:41.9]} 10. O-O-O {[%clk 0:02:55.6]} 10... d5 {[%clk 0:02:35.8]} 11. Nc5
{[%clk 0:02:42.8]} 11... Qd6 {[%clk 0:02:26.1]} 12. Kb1 {[%clk 0:02:38.3]} 12...
b6 {[%clk 0:02:24.4]} 13. Nb3 {[%clk 0:02:38.9]} 13... c5 {[%clk 0:02:23.3]} 14.
dxc5 {[%clk 0:02:38.4]} 14... bxc5 {[%clk 0:02:23.5]} 15. c4 {[%clk 0:02:38.8]}
15... Nc6 {[%clk 0:02:13.7]} 16. h4 {[%clk 0:02:35]} 16... Nb4 {[%clk
0:02:06.5]} 17. h5 {[%clk 0:02:28.8]} 17... Ba6 {[%clk 0:01:45.9]} 18. hxg6
{[%clk 0:02:27.8]} 18... h6 {[%clk 0:01:45.2]} 19. Nfd2 {[%clk 0:02:20.9]} 19...
e5 {[%clk 0:01:41.1]} 20. a3 {[%clk 0:02:10.5]} 20... Nxd3 {[%clk 0:01:28.1]}
21. Qxd3 {[%clk 0:02:09.9]} 21... d4 {[%clk 0:01:22.1]} 22. Ne4 {[%clk
0:02:05.6]} 22... Qxg6 {[%clk 0:01:21.6]} 23. Nbxc5 {[%clk 0:02:03.4]} 23... Bc8
{[%clk 0:01:09.4]} 24. g3 {[%clk 0:01:56.5]} 24... Bf5 {[%clk 0:01:02.7]} 25. f3
{[%clk 0:01:52.4]} 25... Rac8 {[%clk 0:01:01.2]} 26. g4 {[%clk 0:01:52.6]} 26...
Be6 {[%clk 0:00:45.5]} 27. Nxe6 {[%clk 0:01:22.5]} 27... Qxe6 {[%clk 0:00:46.4]}
28. c5 {[%clk 0:01:23.1]} 28... Rf4 {[%clk 0:00:37.5]} 29. g5 {[%clk 0:01:20.9]}
29... Rc6 {[%clk 0:00:10.3]} 30. gxh6 {[%clk 0:01:17]} 30... Bxh6 {[%clk
0:00:10.1]} 31. Rdg1+ {[%clk 0:01:16.4]} 31... Kf8 {[%clk 0:00:09.7]} 32. Rh5
{[%clk 0:01:04.4]} 32... Qf7 {[%clk 0:00:08.1]} 33. Rh3 {[%clk 0:01:00.8]} 33...
Qf5 {[%clk 0:00:07.7]} 34. Qb3 {[%clk 0:00:57.7]} 34... Bg7 {[%clk 0:00:05.8]}
35. Rhg3 {[%clk 0:00:51.7]} 35... Rc7 {[%clk 0:00:02.9]} 36. Qb8+ {[%clk
0:00:50]} 36... Rc8 {[%clk 0:00:03.3]} 37. Qd6+ {[%clk 0:00:49.9]} 1-0

[Event "Early-Titled-Tuesday-Blitz-May-07-2024"]
[Site "Chess.com"]
[Date "2024.05.07"]
[Round "2"]
[White "m_ezat"]
[Black "Tsyhanchuk_Stanislav"]
[Result "1-0"]
[WhiteElo "2558"]
[BlackElo "2357"]
[TimeControl "180+1"]
[EndTime "8:19:27 PDT"]
[Termination "m_ezat won on time"]

1. d4 {[%clk 0:03:00.9]} 1... Nf6 {[%clk 0:02:59.1]} 2. c4 {[%clk 0:03:01.4]}
2... e5 {[%clk 0:02:58.4]} 3. dxe5 {[%clk 0:03:00.2]} 3... Ng4 {[%clk 0:02:59]}
4. Bf4 {[%clk 0:02:52.7]} 4... Nc6 {[%clk 0:02:56.5]} 5. Nf3 {[%clk 0:02:48.6]}
5... Bb4+ {[%clk 0:02:55.3]} 6. Nbd2 {[%clk 0:02:42.4]} 6... Qe7 {[%clk
0:02:53.3]} 7. e3 {[%clk 0:02:41.4]} 7... Ngxe5 {[%clk 0:02:50]} 8. Nxe5 {[%clk
0:02:38.7]} 8... Nxe5 {[%clk 0:02:50.1]} 9. Be2 {[%clk 0:02:37.1]} 9... d6
{[%clk 0:02:45.8]} 10. O-O {[%clk 0:02:34.7]} 10... O-O {[%clk 0:02:41.8]} 11.
Nb3 {[%clk 0:02:31.7]} 11... Ng6 {[%clk 0:02:35.8]} 12. Bg3 {[%clk 0:02:30.9]}
12... Be6 {[%clk 0:02:24.6]} 13. a3 {[%clk 0:02:26.1]} 13... Bc5 {[%clk
0:02:25]} 14. Nd4 {[%clk 0:02:25.7]} 14... Rad8 {[%clk 0:02:12.2]} 15. Rc1
{[%clk 0:02:22.4]} 15... Rfe8 {[%clk 0:02:07.2]} 16. Nb5 {[%clk 0:02:13.4]}
16... a6 {[%clk 0:02:01.6]} 17. Nc3 {[%clk 0:02:12.5]} 17... Ne5 {[%clk
0:01:57.9]} 18. Nd5 {[%clk 0:02:10.9]} 18... Bxd5 {[%clk 0:01:50.6]} 19. cxd5
{[%clk 0:02:03.4]} 19... Qf6 {[%clk 0:01:38.5]} 20. b4 {[%clk 0:02:02.5]} 20...
Bb6 {[%clk 0:01:32.9]} 21. Qd2 {[%clk 0:02:02.3]} 21... Ra8 {[%clk 0:01:25]} 22.
Kh1 {[%clk 0:01:54.4]} 22... a5 {[%clk 0:01:23]} 23. a4 {[%clk 0:01:46]} 23...
axb4 {[%clk 0:01:21.9]} 24. Qxb4 {[%clk 0:01:45.6]} 24... Bc5 {[%clk 0:01:21.3]}
25. Qb3 {[%clk 0:01:42.3]} 25... b6 {[%clk 0:01:17.6]} 26. Bb5 {[%clk
0:01:41.1]} 26... Red8 {[%clk 0:01:09.1]} 27. f4 {[%clk 0:01:36.3]} 27... Ng4
{[%clk 0:01:04]} 28. e4 {[%clk 0:01:33.2]} 28... Ne3 {[%clk 0:00:56.2]} 29. Rfe1
{[%clk 0:01:28.6]} 29... Qd4 {[%clk 0:00:50.4]} 30. Bf2 {[%clk 0:01:22.5]} 30...
Qxe4 {[%clk 0:00:35]} 31. Bxe3 {[%clk 0:01:22.5]} 31... Bxe3 {[%clk 0:00:24.4]}
32. Qxe3 {[%clk 0:01:19.4]} 32... Qb4 {[%clk 0:00:14.3]} 33. Rxc7 {[%clk
0:01:17.9]} 33... Qb2 {[%clk 0:00:08.1]} 34. h3 {[%clk 0:01:17]} 34... h6 {[%clk
0:00:05.5]} 35. Bc6 {[%clk 0:01:12.1]} 35... Rac8 {[%clk 0:00:05.3]} 36. Rxc8
{[%clk 0:01:10]} 36... Rxc8 {[%clk 0:00:06.2]} 37. Qe7 {[%clk 0:01:08.8]} 37...
Qb4 {[%clk 0:00:02.4]} 38. Be8 {[%clk 0:01:06]} 38... Qc5 {[%clk 0:00:00.5]} 39.
Bxf7+ {[%clk 0:01:05.4]} 1-0

[Event "Early-Titled-Tuesday-Blitz-May-07-2024"]
[Site "Chess.com"]
[Date "2024.05.07"]
[Round "2"]
[White "Silvederione"]
[Black "ValiantCeleb"]
[Result "1-0"]
[WhiteElo "2479"]
[BlackElo "2204"]
[TimeControl "180+1"]
[EndTime "8:19:29 PDT"]
[Termination "Silvederione won by resignation"]

1. d4 {[%clk 0:02:58.8]} 1... Nf6 {[%clk 0:02:58.8]} 2. Nc3 {[%clk 0:02:57.9]}
2... d5 {[%clk 0:02:58.8]} 3. Bf4 {[%clk 0:02:58.6]} 3... a6 {[%clk 0:02:59.3]}
4. e3 {[%clk 0:02:59.2]} 4... Bf5 {[%clk 0:02:58.2]} 5. f3 {[%clk 0:02:59.1]}
5... e6 {[%clk 0:02:57.8]} 6. g4 {[%clk 0:02:59.2]} 6... Bg6 {[%clk 0:02:57.8]}
7. h4 {[%clk 0:02:59.7]} 7... h5 {[%clk 0:02:56]} 8. g5 {[%clk 0:03:00.1]} 8...
Nfd7 {[%clk 0:02:56.2]} 9. Bd3 {[%clk 0:03:00.5]} 9... Bxd3 {[%clk 0:02:53.8]}
10. cxd3 {[%clk 0:03:01.4]} 10... c5 {[%clk 0:02:54]} 11. dxc5 {[%clk
0:03:02.3]} 11... Bxc5 {[%clk 0:02:52.5]} 12. d4 {[%clk 0:03:02.8]} 12... Bb4
{[%clk 0:02:52.1]} 13. Ne2 {[%clk 0:03:02.7]} 13... Nc6 {[%clk 0:02:51.7]} 14.
Rc1 {[%clk 0:02:58.8]} 14... Nf8 {[%clk 0:02:43]} 15. Qb3 {[%clk 0:02:56]} 15...
Ng6 {[%clk 0:02:35.9]} 16. Bg3 {[%clk 0:02:48.7]} 16... O-O {[%clk 0:02:27.5]}
17. a3 {[%clk 0:02:44.3]} 17... Bd6 {[%clk 0:02:27]} 18. Kf2 {[%clk 0:02:16.4]}
18... Bxg3+ {[%clk 0:02:18.6]} 19. Nxg3 {[%clk 0:02:17.3]} 19... Na5 {[%clk
0:02:18.5]} 20. Qc2 {[%clk 0:02:12.1]} 20... Nc4 {[%clk 0:02:16.3]} 21. Nxh5
{[%clk 0:02:07.9]} 21... e5 {[%clk 0:02:05.4]} 22. Nxd5 {[%clk 0:01:55.4]} 22...
Rc8 {[%clk 0:01:51.1]} 23. e4 {[%clk 0:00:44.5]} 23... exd4 {[%clk 0:01:38.6]}
24. Qd3 {[%clk 0:00:41.3]} 24... Nxb2 {[%clk 0:01:02.8]} 25. Qxd4 {[%clk
0:00:40.8]} 25... Nd3+ {[%clk 0:00:40.8]} 26. Qxd3 {[%clk 0:00:39.5]} 26... Rxc1
{[%clk 0:00:39.8]} 27. Rxc1 {[%clk 0:00:36.8]} 27... Nxh4 {[%clk 0:00:40.1]} 28.
Qe3 {[%clk 0:00:22.8]} 28... Qd6 {[%clk 0:00:33.3]} 29. Rh1 {[%clk 0:00:20.5]}
29... Ng6 {[%clk 0:00:29.3]} 30. Nhf6+ {[%clk 0:00:20.4]} 30... gxf6 {[%clk
0:00:26.1]} 31. Nxf6+ {[%clk 0:00:21.3]} 1-0

[Event "Early-Titled-Tuesday-Blitz-May-07-2024"]
[Site "Chess.com"]
[Date "2024.05.07"]
[Round "2"]
[White "Strong_Prodigy"]
[Black "Niilo1"]
[Result "0-1"]
[WhiteElo "2498"]
[BlackElo "2311"]
[TimeControl "180+1"]
[EndTime "8:19:30 PDT"]
[Termination "Niilo1 won on time"]

1. d4 {[%clk 0:02:59.5]} 1... Nf6 {[%clk 0:02:59.9]} 2. c4 {[%clk 0:02:59.2]}
2... e6 {[%clk 0:03:00.3]} 3. Nf3 {[%clk 0:02:59.2]} 3... d5 {[%clk 0:02:59.9]}
4. g3 {[%clk 0:02:59.6]} 4... Bb4+ {[%clk 0:02:59]} 5. Bd2 {[%clk 0:02:59.5]}
5... Be7 {[%clk 0:02:59.2]} 6. Bg2 {[%clk 0:03:00]} 6... O-O {[%clk 0:02:59]} 7.
O-O {[%clk 0:03:00.7]} 7... c6 {[%clk 0:02:59.5]} 8. Qc2 {[%clk 0:03:01.4]} 8...
b6 {[%clk 0:02:59.6]} 9. Bf4 {[%clk 0:03:02]} 9... Bb7 {[%clk 0:02:59.2]} 10.
Rd1 {[%clk 0:03:01.7]} 10... Nbd7 {[%clk 0:02:58.5]} 11. Nbd2 {[%clk 0:02:45.8]}
11... Rc8 {[%clk 0:02:48.6]} 12. e4 {[%clk 0:02:40.2]} 12... dxe4 {[%clk
0:02:45.4]} 13. Nxe4 {[%clk 0:02:41.1]} 13... Nxe4 {[%clk 0:02:44.3]} 14. Qxe4
{[%clk 0:02:42]} 14... Nf6 {[%clk 0:02:44.7]} 15. Qe2 {[%clk 0:02:40.3]} 15...
Ba6 {[%clk 0:02:25.4]} 16. Ne5 {[%clk 0:02:32.6]} 16... Qe8 {[%clk 0:02:20.2]}
17. Qc2 {[%clk 0:01:59.8]} 17... c5 {[%clk 0:02:16.7]} 18. d5 {[%clk 0:01:54.3]}
18... exd5 {[%clk 0:02:14.2]} 19. cxd5 {[%clk 0:01:55.2]} 19... Bd6 {[%clk
0:02:14.2]} 20. Re1 {[%clk 0:01:20.5]} 20... Qb5 {[%clk 0:02:11.4]} 21. Bf1
{[%clk 0:01:03.1]} 21... c4 {[%clk 0:01:58.7]} 22. Rad1 {[%clk 0:00:23.8]} 22...
Bb4 {[%clk 0:01:36.3]} 23. Bd2 {[%clk 0:00:03.6]} 23... Nxd5 {[%clk 0:01:32.3]}
24. a4 {[%clk 0:00:02]} 24... Qa5 {[%clk 0:01:30.4]} 25. Bxb4 {[%clk 0:00:02.2]}
25... Nxb4 {[%clk 0:01:30.8]} 26. Qc3 {[%clk 0:00:02.4]} 26... Qxa4 {[%clk
0:01:25.1]} 27. Bxc4 {[%clk 0:00:01.3]} 27... b5 {[%clk 0:01:21.1]} 28. Bb3
{[%clk 0:00:01.1]} 28... Qa5 {[%clk 0:00:56]} 29. Qd2 {[%clk 0:00:01.2]} 29...
Rfd8 {[%clk 0:00:49.3]} 30. Qf4 {[%clk 0:00:00.3]} 30... Qc7 {[%clk 0:00:37.1]}
0-1

[Event "Early-Titled-Tuesday-Blitz-May-07-2024"]
[Site "Chess.com"]
[Date "2024.05.07"]
[Round "2"]
[White "BirdMaster3000"]
[Black "MITerryble"]
[Result "0-1"]
[WhiteElo "2639"]
[BlackElo "3039"]
[TimeControl "180+1"]
[EndTime "8:19:33 PDT"]
[Termination "MITerryble won by resignation"]

1. f4 {[%clk 0:03:00.9]} 1... d5 {[%clk 0:02:59.7]} 2. Nf3 {[%clk 0:02:56]} 2...
g6 {[%clk 0:02:59.8]} 3. e3 {[%clk 0:02:56.3]} 3... Bg7 {[%clk 0:03:00.2]} 4. c4
{[%clk 0:02:56.9]} 4... d4 {[%clk 0:02:50.4]} 5. Nxd4 {[%clk 0:02:55.3]} 5...
Bxd4 {[%clk 0:02:50]} 6. exd4 {[%clk 0:02:55.6]} 6... Qxd4 {[%clk 0:02:50.9]} 7.
Nc3 {[%clk 0:02:53.2]} 7... Qxf4 {[%clk 0:02:45.9]} 8. d4 {[%clk 0:02:53.3]}
8... Qh4+ {[%clk 0:02:37.9]} 9. g3 {[%clk 0:02:53.3]} 9... Qg4 {[%clk
0:02:36.7]} 10. Be2 {[%clk 0:02:52.9]} 10... Qh3 {[%clk 0:02:35.9]} 11. Nd5
{[%clk 0:02:37.1]} 11... Na6 {[%clk 0:02:35.6]} 12. Bg5 {[%clk 0:02:36.6]} 12...
c6 {[%clk 0:02:26.6]} 13. Ne3 {[%clk 0:02:15.7]} 13... f6 {[%clk 0:02:19.1]} 14.
Bf1 {[%clk 0:01:56.7]} 14... Qe6 {[%clk 0:02:09.7]} 15. Bf4 {[%clk 0:01:55.1]}
15... g5 {[%clk 0:02:07.6]} 16. d5 {[%clk 0:01:49.9]} 16... cxd5 {[%clk
0:02:07.3]} 17. cxd5 {[%clk 0:01:48.3]} 17... Qe4 {[%clk 0:02:07.8]} 18. Qh5+
{[%clk 0:01:19]} 18... Kf8 {[%clk 0:01:46.3]} 19. Bg2 {[%clk 0:01:07.4]} 19...
Qb4+ {[%clk 0:01:46.2]} 20. Ke2 {[%clk 0:01:02.8]} 20... gxf4 {[%clk 0:01:47.1]}
21. gxf4 {[%clk 0:01:03]} 21... Nc5 {[%clk 0:01:30.4]} 22. Rad1 {[%clk
0:00:59.3]} 22... Ne4 {[%clk 0:01:15.3]} 23. Bxe4 {[%clk 0:00:55.5]} 23... Qxe4
{[%clk 0:01:16.2]} 24. Rhg1 {[%clk 0:00:56]} 24... Bd7 {[%clk 0:01:10.7]} 25.
Rg3 {[%clk 0:00:45.3]} 25... Rc8 {[%clk 0:01:09.8]} 26. Rd2 {[%clk 0:00:45.2]}
26... Rc1 {[%clk 0:01:07.5]} 27. d6 {[%clk 0:00:42.5]} 27... e6 {[%clk
0:00:55.8]} 28. f5 {[%clk 0:00:36.6]} 28... exf5 {[%clk 0:00:46.4]} 29. Rf3
{[%clk 0:00:26]} 29... Rc5 {[%clk 0:00:33.8]} 30. b4 {[%clk 0:00:20.9]} 30...
Re5 {[%clk 0:00:33.9]} 31. Qh3 {[%clk 0:00:16.3]} 31... h5 {[%clk 0:00:30.1]}
32. Kf2 {[%clk 0:00:14.5]} 32... Nh6 {[%clk 0:00:30.2]} 33. Ng2 {[%clk
0:00:04.8]} 33... Ng4+ {[%clk 0:00:29.9]} 0-1